Cogmind - Beta 14 @@@ ROGUE MODE // 2024.09.03 @ 18:23:54 Player: ILikeVoltron Result: Destroyed by G-47 Trooper with Particle Gun Performance ------------- Evolutions (3) 1500 Regions Visited (5) 1000 Robots Destroyed (53) 265 Value Destroyed (1361) 1361 Prototype IDs (2) 40 Alien Tech Used (0) 0 Bonus (17) 17 TOTAL SCORE: 4183 Bonus ------- High Alert Combat Kills 17 Cogmind --------- Core Integrity 0/700 Matter 300/300 Energy 100/100 System Corruption 0% Temperature Cool (9) Movement Core (700) Ox13 Location -7/Lower Caves Parts ------- > --- POWER (2) -------- (None) > --- PROPULSION (3) --- (None) > --- UTILITY (5) ------ High-capacity Storage Unit Improved Melee Analysis Suite Improved Melee Analysis Suite > --- WEAPON (3) ------- (None) > --- INVENTORY (20) --- Light Angular Momentum Engine Aluminum Leg Improved Heat Sink Improved Cooling System Medium Storage Unit Medium Matter Pod (100) Improved Sensor Array Seismic Detector Beam Rifle Particle Gun Peak State ------------ > --- POWER ------------ Cooled Ion Engine Improved Deuterium Engine > --- PROPULSION ------- Light Treads Armored Wheel Armored Wheel > --- UTILITY ---------- Medium Storage Unit Improved Terrain Scanner Improved Melee Analysis Suite Improved Melee Analysis Suite Light Armor Plating > --- WEAPON ----------- Ion Cannon Greatsword > --- INVENTORY -------- Improved Heat Sink Medium Matter Pod Improved Sensor Array Seismic Detector Beam Rifle Rocket Launcher Greatsword [Rating: 38] Favorites ----------- Power Ion Engine Engine Ion Engine Power Core Light Nuclear Core Propulsion Light Treads Treads Light Treads Leg Aluminum Leg Wheel Armored Wheel Hover Unit Hover Unit Utility Improved Terrain Scanner Device Improved Terrain Scanner Storage Medium Storage Unit Processor Improved Melee Analysis Suite Protection Light Armor Plating Weapon Subdweller Machine Gun Energy Gun Medium Laser Energy Cannon Ion Cannon Ballistic Gun Subdweller Machine Gun Launcher Mini Grenade Launcher Special Weapon Mining Laser Impact Weapon Flail Slashing Weapon Greatsword Build | -11 -10 -10 -8 -7 -7 ------- Run | Yrd Mat Sub Mat Fac Low Slots Evolved 6 | . . . 4 2 . Power 1 | . . . . 1 . Propulsion 1 | . . . 1 . . Utility 3 | . . . 2 1 . Weapon 1 | . . . 1 . . Parts Attached 57 | 2 7 8 33 3 4 Power 8 | . . 2 5 1 . Engine 7 | . . 2 4 1 . Core 1 | . . . 1 . . Reactor . | . . . . . . Propulsion 13 | . 2 3 7 . 1 Treads 4 | . . 1 3 . . Leg 1 | . . . . . 1 Wheel 6 | . . 2 4 . . Hover 2 | . 2 . . . . Flight . | . . . . . . Utility 13 | 1 1 . 9 2 . Device 3 | 1 . . 1 1 . Storage 2 | . 1 . . 1 . Processor 5 | . . . 5 . . Hackware . | . . . . . . Protection 3 | . . . 3 . . Artifact . | . . . . . . Weapon 23 | 1 4 3 12 . 3 Energy Gun 5 | . 1 . 4 . . Energy Cannon 2 | . . . 2 . . Ballistic Gun 8 | 1 1 2 3 . 1 Ballistic Cannon . | . . . . . . Launcher 2 | . . 1 . . 1 Special Weapon 1 | . 1 . . . . Impact Weapon 3 | . 1 . 2 . . Slashing Weapon 2 | . . . 1 . 1 Piercing Weapon . | . . . . . . Special Melee Weapon . | . . . . . . Unidentified Prototypes 2 | . . . 2 . . Parts Lost 22 | . . 3 6 . 13 Power 3 | . . . 1 . 2 Propulsion 8 | . . 3 1 . 4 Utility 3 | . . . 1 . 2 Weapon 8 | . . . 3 . 5 Highest Loss Streak 9 | . . 2 2 . 9 To Critical Strikes . | . . . . . . Average Slot Usage (%) 81 | . 100 73 93 92 59 Engine 9 | . 14 11 4 15 8 Core 1 | . . . 3 . . Treads 5 | . . 3 9 7 3 Leg 1 | . 8 . . . 2 Wheel 6 | . . 1 14 15 3 Hover 2 | . 19 . . . . Device 9 | . 14 14 3 7 3 Storage 11 | . 14 14 9 7 7 Processor 8 | . . . 17 15 15 Protection 2 | . . . 5 7 . Energy Gun 4 | . 12 . 8 . . Energy Cannon 1 | . . . 1 7 3 Ballistic Gun 15 | . 14 24 10 . 5 Launcher 1 | . . 3 . . . Impact Weapon 1 | . . . 4 . . Peak Build Rating 38 | 9 12 13 31 38 38 Average Rating 17 | 6 9 10 22 37 26 On Entrance 18 | 6 9 12 13 31 38 Naked Turns . | . . . . . . Heaviest Build 73 | 15 21 24 32 73 73 Greatest Support 40 | 20 20 30 40 24 24 Greatest Overweight (x) 18 | . 1 7 2 3 18 Average Overweight (x) 2 | . . 3 . 2 6 Largest Inventory Capacity 20 | 8 10 10 10 20 20 Average Capacity 11 | 8 8 10 10 18 20 Most Carried 13 | 8 10 10 10 11 13 Average Carried 9 | 6 8 9 9 10 11 Final Capacity 20 | 8 10 10 10 20 20 Final Carried 11 | 8 10 10 10 11 10 Class Distribution -------------------- 56% | Mutant 15% | Scavenger-Mutant 9% | Gladiator 8% | Scavenger-Skirmisher 4% | Scavenger-Assassin Dominant Class ---------------- Mutant | -10/Materials Mutant | -10/Subcaves Scavenger-Mutant | -8/Materials Gladiator | -7/Factory Mutant | -7/Lower Caves Resources | -11 -10 -10 -8 -7 -7 ----------- Run | Yrd Mat Sub Mat Fac Low Matter Collected 1328 | 241 149 194 554 . 190 Remotely . | . . . . . . Salvage Created 1832 | 124 149 42 1139 . 378 Parts 110 | 10 17 3 68 . 12 Haulers Intercepted 5 | . 1 . 4 . . Recyclers Shooed 1 | . . . 1 . . Parts Field Recycled . | . . . . . . Retrieved Matter . | . . . . . . Parts Self-Destructed 20 | . . 8 . . 12 Prevented . | . . . . . . Kills | -11 -10 -10 -8 -7 -7 ------- Run | Yrd Mat Sub Mat Fac Low Combat Hostiles Destroyed 35 | . 4 3 20 . 8 Melee 4 | . . . . . 4 Guns 26 | . 4 1 18 . 3 Cannons 2 | . . . 2 . . AOE 3 | . . 2 . . 1 Classes Destroyed 11 | 2 4 1 4 . . Worker 3 | . . . 3 . . Builder 4 | . 1 . 3 . . Tunneler 3 | 3 . . . . . Hauler 5 | . 1 . 4 . . Recycler 1 | 1 . . . . . Watcher 2 | . 1 . 1 . . Swarmer 10 | . 4 . 6 . . Grunt 15 | . . . 8 . 7 Duelist 2 | . . . 1 . 1 Sentry 5 | . . . 5 . . Subdweller 3 | . . 3 . . . Best Kill Streak 6 | 3 4 2 6 . 3 Combat Bots Only 4 | . 2 2 4 . 3 Max Kills in Single Turn 2 | 1 2 2 2 . 1 Gunslinging 1 | . . . 1 . . Exploded 2 | . . 2 . . 1 Melee 1 | . . . . . 1 Uniques/NPCs Destroyed . | . . . . . . Combat | -11 -10 -10 -8 -7 -7 -------- Run | Yrd Mat Sub Mat Fac Low Hostile Shots Fired 309 | . 21 16 111 . 161 Missed 73 | . 8 4 24 . 37 Damage Taken 3780 | . 104 361 1214 . 2101 Core 959 | . 6 58 183 . 712 Absorbed by Shields . | . . . . . . Core Remaining (%) 80 | 100 . 74 66 . . Volleys Fired 136 | 8 20 8 88 . 12 Largest 3 | 2 2 2 3 . 3 Hottest 175 | 90 100 60 175 . 121 Shots Fired 271 | 16 38 11 183 . 23 Gun 246 | 16 36 7 175 . 12 Cannon 15 | . . . 8 . 7 Launcher 8 | . . 4 . . 4 Special 2 | . 2 . . . . Kinetic 155 | 7 18 7 111 . 12 Thermal 72 | 8 20 . 37 . 7 Explosive 8 | . . 4 . . 4 Electromagnetic 36 | 1 . . 35 . . Robot Hit Streak 15 | 5 5 13 15 . 6 Robot Miss Streak 11 | 1 4 . 11 . 5 Penetration Max . | . . . . . . Secondary Targets 4 | . . . 4 . . Max Gunslinging Chain 1 | . . . 1 . . Shots Hit Robots 178 | 10 12 11 118 . 27 Core Hits 93 | 5 8 5 52 . 23 Critical Kills . | . . . . . . Critical Parts Destroyed . | . . . . . . Critical Strikes 7 | . 1 1 1 . 4 Burn 2 | . 1 . 1 . . Destroy 1 | . . 1 . . . Sever 4 | . . . . . 4 Melee Attacks 22 | . 2 . 8 1 11 Impact 9 | . 2 . 7 . . Slashing 13 | . . . 1 1 11 Piercing . | . . . . . . Sneak Attacks 2 | . . . 2 . . Combat Hostiles . | . . . . . . Follow-up Attacks . | . . . . . . Damage Inflicted 4076 | 144 165 614 2203 . 950 Guns 2559 | 144 165 147 1888 . 215 Cannons 182 | . . . 114 . 68 Explosions 541 | . . 467 . . 74 Melee 785 | . . . 201 . 584 Ramming 9 | . . . . . 9 Kinetic 1746 | 68 79 147 1237 . 215 Thermal 499 | 64 86 . 281 . 68 Explosive 541 | . . 467 . . 74 Electromagnetic 496 | 12 . . 484 . . Impact 86 | . . . 86 . . Slashing 699 | . . . 115 . 584 Piercing . | . . . . . . Highest Corruption . | . . . . . . Average Corruption . | . . . . . . Corruption Purged . | . . . . . . Corruption Blocked . | . . . . . . Overload Shots . | . . . . . . Overflow Damage 98 | . . 3 46 . 49 Projectiles . | . . . . . . Explosions 41 | . . 3 . . 38 Melee 57 | . . . 46 . 11 Knockbacks 1 | . . . 1 . . Impact 1 | . . . 1 . . Kinetic . | . . . . . . Secondary . | . . . . . . Self-Inflicted Damage 176 | . . 95 . . 81 Shots 6 | . . 4 . . 2 Rammed 1 | . . . . . 1 Targets Rammed 1 | . . . . . 1 Kicked . | . . . . . . Crushed . | . . . . . . Highest Temperature 306 | 30 105 . 306 . 256 Average Temperature 62 | 13 31 . 73 . 82 Received Heat Transfer 1881 | . . 81 531 . 1269 Effects 2 | . . . . . 2 Interference 2 | . . . . . 2 Siege Activations . | . . . . . . Robots Corrupted 1 | . . . 1 . . Combat Hostiles . | . . . . . . Parts Fried 4 | . . . 4 . . Impact Corruptions 2 | . . . 2 . . Robots Melted . | . . . . . . Combat Hostiles . | . . . . . . Parts Melted 2 | . 2 . . . . Heat Transferred 1369 | 185 333 . 740 . 111 Parts Sabotaged . | . . . . . . Parts Stolen . | . . . . . . Parts Stripped . | . . . . . . Power Chain Reactions . | . . . . . . Alert | -11 -10 -10 -8 -7 -7 ------- Run | Yrd Mat Sub Mat Fac Low Peak Influence 523 | 20 175 . 523 195 . Initial 179 | . 13 . . 179 . Average 183 | 7 87 . 235 180 . Maximum Alert Level 2 | . . . 2 . . Low Security (%) 63 | 100 100 . 40 100 . Level 1 27 | . . . 44 . . Level 2 9 | . . . 14 . . Level 3 . | . . . . . . Level 4 . | . . . . . . Level 5 . | . . . . . . High Security . | . . . . . . Max Security . | . . . . . . Squads Dispatched 2 | . . . 1 1 . Investigation . | . . . . . . Extermination . | . . . . . . Reinforcement 2 | . . . 1 1 . Assault . | . . . . . . Garrison . | . . . . . . Intercept . | . . . . . . Searches Triggered . | . . . . . . Construction Impeded . | . . . . . . Haulers Reinforced . | . . . . . . Active Scanning Responses . | . . . . . . Cargo Convoy Interrupts . | . . . . . . Stealth | -11 -10 -10 -8 -7 -7 --------- Run | Yrd Mat Sub Mat Fac Low Distress Signals 5 | . 2 . 3 . . Communications Jammed . | . . . . . . Distress Signals . | . . . . . . Times Spotted 60 | . 8 5 34 1 12 Peak Tracking Total 6 | . 3 2 6 1 4 Tactical Retreats 8 | . 2 . 5 . 1 Traps | -11 -10 -10 -8 -7 -7 ------- Run | Yrd Mat Sub Mat Fac Low Traps Triggered . | . . . . . . Indirectly . | . . . . . . Trap Hack Attempts . | . . . . . . Triggered . | . . . . . . Disarmed . | . . . . . . Reprogrammed . | . . . . . . Reused . | . . . . . . Traps Extracted . | . . . . . . Installed . | . . . . . . Triggered . | . . . . . . Machines | -11 -10 -10 -8 -7 -7 ---------- Run | Yrd Mat Sub Mat Fac Low Machines Disabled 1 | . . . 1 . . Max in Single Turn 1 | . . . 1 . . Garrison Access 1 | . . . 1 . . Machines Repaired . | . . . . . . Machines Dismantled . | . . . . . . Machines Sabotaged . | . . . . . . Overloaded Fab Kills . | . . . . . . Hacking | -11 -10 -10 -8 -7 -7 --------- Run | Yrd Mat Sub Mat Fac Low Machines Accessed 4 | . 1 1 2 . . Terminals 2 | . 1 . 1 . . Fabricators . | . . . . . . Repair Stations . | . . . . . . Recycling Units . | . . . . . . Scanalyzers . | . . . . . . Garrison Access 1 | . . . 1 . . Total Hacks 14 | . 2 4 8 . . Successful 8 | . 1 4 3 . . Failed 6 | . 1 . 5 . . Catastrophic 1 | . . . 1 . . Database Lockouts . | . . . . . . Manual 4 | . . . 4 . . Terminals 7 | . 2 . 5 . . Fabricators . | . . . . . . Repair Stations . | . . . . . . Recycling Units . | . . . . . . Scanalyzers . | . . . . . . Garrison Access 3 | . . . 3 . . Terminal Hacks 7 | . 1 4 2 . . Record 4 | . . 4 . . . Locate Traps 2 | . 1 . 1 . . Zone Layout 1 | . . . 1 . . Fabricator Hacks . | . . . . . . Repair Station Hacks . | . . . . . . Recycling Unit Hacks . | . . . . . . Scanalyzer . | . . . . . . Garrison Access Hacks 1 | . . . 1 . . Seal Access 1 | . . . 1 . . Unauthorized Hacks . | . . . . . . Terminals . | . . . . . . Fabricators . | . . . . . . Repair Stations . | . . . . . . Recycling Units . | . . . . . . Scanalyzers . | . . . . . . Garrison Access . | . . . . . . Data Cores Recovered . | . . . . . . Used . | . . . . . . Hacking Detections 3 | . 1 . 2 . . Full Trace Events . | . . . . . . Feedback Events . | . . . . . . Feedback Blocked . | . . . . . . Robot Schematics Acquired . | . . . . . . Robots Built . | . . . . . . Authchips . | . . . . . . Time . | . . . . . . Total Robot Build Rating . | . . . . . . Part Schematics Acquired . | . . . . . . Parts Built . | . . . . . . Authchips . | . . . . . . Time . | . . . . . . Total Part Build Rating . | . . . . . . Parts Repaired . | . . . . . . Time . | . . . . . . Parts Recycled . | . . . . . . Recycled Matter . | . . . . . . Retrieved Matter . | . . . . . . Retrieved Components . | . . . . . . Parts Scanalyzed . | . . . . . . Part Schematics Acquired . | . . . . . . Parts Damaged . | . . . . . . Bothacking | -11 -10 -10 -8 -7 -7 ------------ Run | Yrd Mat Sub Mat Fac Low Used RIF Installer . | . . . . . . Robots Hacked . | . . . . . . Non-combat . | . . . . . . Combat . | . . . . . . Robot Hacks Applied . | . . . . . . Relay Couplers Released . | . . . . . . Fabnet Peak Effective % . | . . . . . . Robots Rewired . | . . . . . . Allies Hacked . | . . . . . . Hacks Repelled . | . . . . . . Allies | -11 -10 -10 -8 -7 -7 -------- Run | Yrd Mat Sub Mat Fac Low Total Allies . | . . . . . . Largest Group . | . . . . . . Highest-Rated Group . | . . . . . . Highest-Rated Ally . | . . . . . . Total Orders . | . . . . . . Ally Attacks . | . . . . . . Total Damage . | . . . . . . Kills . | . . . . . . Allies Corrupted . | . . . . . . Allies Melted . | . . . . . . Intel | -11 -10 -10 -8 -7 -7 ------- Run | Yrd Mat Sub Mat Fac Low Robot Analysis Total . | . . . . . . Derelict Logs Recovered . | . . . . . . Drone Launches . | . . . . . . Drone Recoveries . | . . . . . . Exploration | -11 -10 -10 -8 -7 -7 ------------- Run | Yrd Mat Sub Mat Fac Low Turns Passed 3001 | 93 333 1142 925 132 376 Spaces Moved 1387 | 32 204 444 503 95 109 Core 214 | . . 194 . . 20 Treads 214 | . . 162 52 . . Legs 98 | 32 61 . . . 5 Wheels 710 | . . 80 451 95 84 Hover 151 | . 143 8 . . . Flight . | . . . . . . Fastest Speed 90 | 120 116 95 90 105 135 Average Speed 170 | 120 117 247 111 131 279 Slowest Speed 950 | 120 120 400 240 135 950 Overloaded Moves . | . . . . . . Propulsion Burnouts . | . . . . . . Robots Hopped . | . . . . . . Cave-ins Triggered . | . . . . . . Exploration Rate (%) 25 | 4 41 30 54 3 21 Regions Visited 5 Branch Regions 2 Pre-discovered Areas 1 | . . 1 . . . Known Exits Taken . | . . . . . . Unknown Exits Taken 5 | 1 1 1 1 1 . Scrap Searched 5 | . . 5 . . . Spaces Dug 10 | . 4 . 5 1 . Terrain Destroyed 56 | . 4 18 9 1 24 Melee 8 | . 2 . 5 1 . Projectile 6 | . 2 . 4 . . AOE 42 | . . 18 . . 24 Terrain Rammed . | . . . . . . Walls Destroyed . | . . . . . . Machines Disabled . | . . . . . . Actions | -11 -10 -10 -8 -7 -7 --------- Run | Yrd Mat Sub Mat Fac Low Total 1741 | 69 255 476 701 100 140 Wait 57 | 26 3 1 27 . . Move 1382 | 31 203 443 502 94 109 Hop . | . . . . . . Pick Up 30 | 2 10 . 13 2 3 Fast Attach 25 | 1 . 4 19 . 1 Attach 11 | . . 1 5 2 3 Detach 5 | . . 1 4 . . Swap 21 | 1 7 3 9 1 . Drop 39 | . 10 3 26 . . Fire 136 | 8 20 8 88 . 12 Melee 22 | . 2 . 8 1 11 Ram 1 | . . . . . 1 Kick . | . . . . . . Crush . | . . . . . . Escape Stasis . | . . . . . . Rewire 12 | . . 12 . . . Trap . | . . . . . . Miscellaneous . | . . . . . . Route ------- -11/Scrapyard -10/Materials (discovered 2 exits: [*Min] / *Sub) -10/Subcaves -8/Materials (discovered 2 exits: [*Fac x2]) -7/Factory -7/Lower Caves History --------- Turn | Location | Event 9 | -11/Scrapyard | Discovered new exit (range 3) 94 | -11/Scrapyard | Entered Materials 233 | -10/Materials | Discovered new exit (range 9) 312 | -10/Materials | Build established: Mutant 405 | -10/Materials | Discovered new exit (range 16) 427 | -10/Materials | Entered Subcaves 436 | -10/Subcaves | Ambushed by Subdwellers from Twisted Machinery 618 | -10/Subcaves | Visited Clippyterm 623 | -10/Subcaves | Learned location of Section 7 (-2) 623 | -10/Subcaves | Learned Research machine intel 709 | -10/Subcaves | Disturbed a concealed Subdweller 1154 | -10/Subcaves | Curiously followed by a Cobbler waking with a query about "LVR3C" 1472 | -10/Subcaves | Shifting Twisted Machinery released Mak. Kinetic Plating 1489 | -10/Subcaves | Shifting Twisted Machinery released Sub. Machine Gun 1529 | -10/Subcaves | Discovered new exit (range 15) 1569 | -10/Subcaves | Entered Materials 1569 | -8/Materials | Evolved 4 slots: Propulsion x1, Utility x2, Weapon x1 1972 | -8/Materials | Discovered new exit (range 18) 2483 | -8/Materials | Discovered new exit (range 7) 2494 | -8/Materials | Entered Factory 2494 | -7/Factory | Evolved 2 slots: Power x1, Utility x1 2611 | -7/Factory | Discovered new exit (range 11) 2626 | -7/Factory | Entered Lower Caves 2697 | -7/Lower Caves | Lost 3 parts (1n1u1w) 2890 | -7/Lower Caves | Lost 9 parts (2p3n1u3w) 2975 | -7/Lower Caves | Core integrity fell below 50% 2994 | -7/Lower Caves | Core integrity fell below 20% 3002 | -7/Lower Caves | Destroyed by G-47 Trooper with Particle Gun Last Messages --------------- Rocket Launcher destroyed. Ion Cannon destroyed. The unstable cave ceiling collapses. Critical hit (Burn: +37). Acquired 34 matter. Imp. Terrain Scanner destroyed. Carbon-fiber Leg destroyed. Critical hit (Burn: +37). The unstable cave ceiling collapses. G-47 Trooper destroyed. Aluminum Leg fries itself beyond repair. Greatsword destroyed. Lgt. Nuclear Core fries itself beyond repair. Cld. Ion Engine destroyed. Lgt. Nuclear Core fries itself beyond repair. G-47 Trooper destroyed. Aluminum Leg fries itself beyond repair. Acquired 30 matter. Flak Gun destroyed. Critical hit (Burn: +37). Map ----- +----------------------------------------------------+ | ?????????????????????????????????????????????????? | | ?????????????????????????????????????????????????? | | ?????????????????????????????????????????????????? | | ?????????????????????????????????????????????????? | | ?????????????????????????????????????????????????? | | ?????????????????????????????????????????????????? | | ?????????????????????????????????????????????????? | | ???????????????????????????????#?????????????????? | | ??????????????????????????????# ???????????????? | | ?????????????????????????????# #?????????????? | | ???????????????????###??????# ### ??????????? | | ???????????????????? ????? ## ???????? | | ????????????????????? ????? ???????? | | ?????????????????????# ????# ???????# | | ?????????????????????# ##??# #???????? | | ?????????????????????# #?# #???????? | | ?????????????????????? ## #???????? | | ??????????????????????? g ????????? | | ???????????????????????? g ????#####?? | | ????????????????????????? g #???#### #?? | | ??????????????????????????# #????# #?? | | ?????????????????????????## #???## ##?? | | ?????????????????????????# ##### #?# | | ????????????????????????## ###% #?? | | ???????????????????????## ## #?? | | ???????????????????????# @ % ###?? | | ??????????????????????# % ##?## | | ?????????????????????# ### ##??#? | | ??????????????????? ## ###### | | ?????????????????? #### ## # | | ??????????????????????## #### | | ???????????????????????##### ##?# | | ???????????????????????????## # ### | | ????????????????????????????## ## | | ?????????????????????????????#### # | | ????????????????????????????????### # | | ??????????????????????????????????###### | | ???????????????????????????????????????# ## | | ???????????????????????????????????????# ##? | | ???????????????????????????????????????##### ##?? | | ???????????????????????????????????????????####??? | | ?????????????????????????????????????????????????? | | ????????????????????????????????????????????????#? | | ?????????????????????????????????????????????????? | | ?????????????????????????????????????????????????? | | ?????????????????????????????????????????????????? | | ?????????????????????????????????????????????????? | | ????????????????????????????????????????????????#? | | ?????????????????????????????????????????????????? | | ?????????????????????????????????????????????????? | +----------------------------------------------------+ Best States ------------- Heat Dissipation 34 Energy Generation 25 Energy Capacity 470 Matter Stores 300 Matter Capacity 300 Sight Range 18 Terrain Scan Range 16 Terrain Scan Density 85 Armor Coverage 225 Evasion (%) 55 Melee Accuracy 12 Recoil Reduction 2 Item Schematics ----------------- None Robot Schematics ------------------ None Fabricated ------------ Nothing Alien Tech Used ----------------- None Achievements -------------- None Challenges ------------ None Game ------ Seed DirtyLightningCannon Manual? 0 Play Time 00:30:42 Cumulative 160.1 hours Start 2024.09.03 @ 17:49:19 End 2024.09.03 @ 18:23:54 Sessions 3 Manual Loads 0 Difficulty Rogue Special Mode None Game No. 288 Rogue 284 Adventurer 0 Explorer 4 Win Type - Total 0 Types 0/0/0/0/0/0/0/0/0 Lore% 20 Gallery% 46 Achievement% 34 Wizard Run 0 Options --------- Layout 1 ASCII 0 Keyboard 1 Movement Arrows Keybinds 0 Fullscreen 1 Font 32/SmallcapsGlow Map View 130x35 Zoom Use 0% Tactical HUD 0 Map Filters NONE Filters NONE Steam 0 RUN: 8f6f8a7f-dcb2-48d9-87fa-51537c1e59b6